[Event "*** Titled Tuesday Blitz"]
[Site "Chess.com"]
[Date "2019.01.01"]
[Round "5"]
[White "penguingm1"]
[Black "mitrabhaa"]
[Result "1-0"]
[WhiteElo "2811"]
[BlackElo "2581"]
[TimeControl "180+2"]
[EndTime "14:10:01 PST"]
[Termination "penguingm1 won by resignation"]

1. d4 {[%clk 0:03:01.9]} 1... Nf6 {[%clk 0:03:00.4]} 2. c4 {[%clk 0:03:02.9]}
2... e6 {[%clk 0:03:01.7]} 3. Nc3 {[%clk 0:03:04.2]} 3... Bb4 {[%clk 0:03:02.5]}
4. Qc2 {[%clk 0:03:05.6]} 4... O-O {[%clk 0:03:03.3]} 5. Nf3 {[%clk 0:03:06.9]}
5... c5 {[%clk 0:03:03.2]} 6. dxc5 {[%clk 0:03:08.8]} 6... Na6 {[%clk
0:03:04.4]} 7. g3 {[%clk 0:03:10.4]} 7... Nxc5 {[%clk 0:03:05.6]} 8. Bg2 {[%clk
0:03:12.3]} 8... Nce4 {[%clk 0:03:06.2]} 9. O-O {[%clk 0:03:13.9]} 9... Bxc3
{[%clk 0:03:07.7]} 10. bxc3 {[%clk 0:03:15.8]} 10... d6 {[%clk 0:03:09.2]} 11.
Nd4 {[%clk 0:03:13.9]} 11... Nc5 {[%clk 0:03:09.4]} 12. Rd1 {[%clk 0:03:15.4]}
12... Qe7 {[%clk 0:03:10.8]} 13. Nb5 {[%clk 0:03:13]} 13... Bd7 {[%clk
0:03:11.9]} 14. Ba3 {[%clk 0:03:09.5]} 14... Bxb5 {[%clk 0:03:07.1]} 15. cxb5
{[%clk 0:03:10.4]} 15... Rac8 {[%clk 0:03:08.6]} 16. c4 {[%clk 0:03:10.2]} 16...
Rfd8 {[%clk 0:03:09.3]} 17. Bb4 {[%clk 0:03:08.3]} 17... Rc7 {[%clk 0:03:05.3]}
18. a4 {[%clk 0:03:08.5]} 18... Rdc8 {[%clk 0:03:06.5]} 19. Rd2 {[%clk
0:03:09.6]} 19... b6 {[%clk 0:02:48.6]} 20. Rad1 {[%clk 0:03:09.7]} 20... Rd8
{[%clk 0:02:49.8]} 21. Bc6 {[%clk 0:03:10]} 21... h6 {[%clk 0:02:36.1]} 22. a5
{[%clk 0:03:10.9]} 22... Rcc8 {[%clk 0:02:30.8]} 23. h4 {[%clk 0:02:56.8]} 23...
Qc7 {[%clk 0:02:30.2]} 24. Qa2 {[%clk 0:02:44.5]} 24... Kh8 {[%clk 0:02:25.2]}
25. Rd4 {[%clk 0:02:34.8]} 25... Ng8 {[%clk 0:02:25.6]} 26. Bxc5 {[%clk
0:02:21]} 26... dxc5 {[%clk 0:02:24.3]} 27. Rd7 {[%clk 0:02:21.9]} 27... Qb8
{[%clk 0:02:17.2]} 28. R1d3 {[%clk 0:02:17.6]} 28... Rxd7 {[%clk 0:02:16.9]} 29.
Rxd7 {[%clk 0:02:18.7]} 29... Rc7 {[%clk 0:02:18.3]} 30. Rd3 {[%clk 0:02:04.4]}
30... Nf6 {[%clk 0:02:19.4]} 31. axb6 {[%clk 0:02:00.9]} 31... axb6 {[%clk
0:02:17.7]} 32. Ra3 {[%clk 0:01:28.5]} 32... Qd8 {[%clk 0:02:15.4]} 33. Kg2
{[%clk 0:01:22]} 33... g6 {[%clk 0:02:15.6]} 34. Ra6 {[%clk 0:01:20.2]} 34...
Rc8 {[%clk 0:02:11.9]} 35. Qa1 {[%clk 0:01:21.6]} 35... Kg7 {[%clk 0:02:12.5]}
36. Qe5 {[%clk 0:01:22.8]} 36... Kg8 {[%clk 0:01:52.8]} 37. Ra7 {[%clk
0:01:11.1]} 37... h5 {[%clk 0:01:48.4]} 38. Qf4 {[%clk 0:01:11.4]} 38... Kg7
{[%clk 0:01:41.1]} 39. e4 {[%clk 0:01:09.4]} 39... Qd4 {[%clk 0:01:33.4]} 40. e5
{[%clk 0:01:06.3]} 40... Qxf4 {[%clk 0:01:34.3]} 41. gxf4 {[%clk 0:01:07.7]}
41... Ng8 {[%clk 0:01:34.9]} 42. Bd7 {[%clk 0:01:09]} 42... Rf8 {[%clk 0:01:26]}
43. Bxe6 {[%clk 0:01:10.3]} 43... Nh6 {[%clk 0:01:26.7]} 44. Rb7 {[%clk
0:01:11]} 44... Kg8 {[%clk 0:01:28.1]} 45. Bd5 {[%clk 0:01:11.6]} 45... Nf5
{[%clk 0:01:29.4]} 46. Rxb6 {[%clk 0:01:12.6]} 46... Nxh4+ {[%clk 0:01:30.9]}
47. Kh3 {[%clk 0:01:14]} 47... Nf5 {[%clk 0:01:31.5]} 48. Rxg6+ {[%clk
0:01:15.2]} 48... Kh7 {[%clk 0:01:32.1]} 49. Rg5 {[%clk 0:01:13.5]} 49... Ng7
{[%clk 0:01:33.4]} 50. Be4+ {[%clk 0:01:09.9]} 50... Kh6 {[%clk 0:01:34.2]} 51.
b6 {[%clk 0:01:09.2]} 51... Ne6 {[%clk 0:01:35.3]} 52. Rf5 {[%clk 0:01:10.3]}
52... Kg7 {[%clk 0:01:33.5]} 53. Rf6 {[%clk 0:01:09.2]} 53... Rd8 {[%clk
0:01:31]} 54. b7 {[%clk 0:01:02.8]} 54... Rb8 {[%clk 0:01:31.4]} 55. Bd5 {[%clk
0:00:58.7]} 55... Nd8 {[%clk 0:01:30.7]} 56. Ra6 {[%clk 0:00:58]} 56... Kf8
{[%clk 0:01:32.2]} 57. Ra8 {[%clk 0:00:58.1]} 1-0

[Event "*** Titled Tuesday Blitz"]
[Site "Chess.com"]
[Date "2019.01.01"]
[Round "5"]
[White "kleinebeer98"]
[Black "Litti"]
[Result "1-0"]
[WhiteElo "2700"]
[BlackElo "2510"]
[TimeControl "180+2"]
[EndTime "14:10:03 PST"]
[Termination "kleinebeer98 won by resignation"]

1. e4 {[%clk 0:03:01.9]} 1... c5 {[%clk 0:03:00.6]} 2. Nf3 {[%clk 0:03:02]} 2...
e6 {[%clk 0:03:01.6]} 3. d4 {[%clk 0:03:01.7]} 3... cxd4 {[%clk 0:03:03.5]} 4.
Nxd4 {[%clk 0:03:03.4]} 4... Nf6 {[%clk 0:03:05]} 5. Nc3 {[%clk 0:03:03.8]} 5...
Nc6 {[%clk 0:03:05.9]} 6. Ndb5 {[%clk 0:03:04.3]} 6... Bb4 {[%clk 0:03:06]} 7.
a3 {[%clk 0:03:05.2]} 7... Bxc3+ {[%clk 0:03:06.5]} 8. Nxc3 {[%clk 0:03:07.1]}
8... d5 {[%clk 0:03:07.3]} 9. Bd3 {[%clk 0:03:02.9]} 9... dxe4 {[%clk 0:03:07]}
10. Nxe4 {[%clk 0:03:03.5]} 10... Nxe4 {[%clk 0:03:08.9]} 11. Bxe4 {[%clk
0:03:05.4]} 11... Qxd1+ {[%clk 0:03:09.2]} 12. Kxd1 {[%clk 0:03:07.3]} 12... Bd7
{[%clk 0:03:10]} 13. b3 {[%clk 0:03:05.3]} 13... f5 {[%clk 0:03:05.2]} 14. Bd3
{[%clk 0:02:56.7]} 14... O-O-O {[%clk 0:03:03.3]} 15. Bb2 {[%clk 0:02:55.1]}
15... e5 {[%clk 0:03:03.5]} 16. Kc1 {[%clk 0:02:46.2]} 16... Rhe8 {[%clk
0:02:53.3]} 17. Rd1 {[%clk 0:02:26.5]} 17... e4 {[%clk 0:02:46.5]} 18. Be2
{[%clk 0:02:19.4]} 18... Ne5 {[%clk 0:02:45]} 19. Rd5 {[%clk 0:02:10.9]} 19...
Nc6 {[%clk 0:02:43.2]} 20. g3 {[%clk 0:02:05.5]} 20... Re7 {[%clk 0:02:31.9]}
21. b4 {[%clk 0:01:51.4]} 21... Be6 {[%clk 0:02:29.1]} 22. Rxd8+ {[%clk
0:01:32.4]} 22... Kxd8 {[%clk 0:02:27.2]} 23. Kd2 {[%clk 0:01:23.6]} 23... Rd7+
{[%clk 0:01:41]} 24. Ke3 {[%clk 0:01:24.4]} 24... Ne7 {[%clk 0:01:41.9]} 25. c4
{[%clk 0:01:20.1]} 25... b5 {[%clk 0:01:29]} 26. Bxg7 {[%clk 0:01:13]} 26...
Bxc4 {[%clk 0:01:17.9]} 27. Bf6 {[%clk 0:00:55.8]} 27... Bxe2 {[%clk 0:01:12.9]}
28. Kxe2 {[%clk 0:00:57.6]} 28... Kc7 {[%clk 0:01:10.1]} 29. Rc1+ {[%clk
0:00:49.8]} 29... Kb7 {[%clk 0:01:08.2]} 30. Bxe7 {[%clk 0:00:47.6]} 30... Rxe7
{[%clk 0:01:10.1]} 31. Rc5 {[%clk 0:00:49.1]} 31... Kb6 {[%clk 0:00:52.6]} 32.
Rxf5 {[%clk 0:00:48.8]} 32... Rc7 {[%clk 0:00:53.6]} 33. Ke3 {[%clk 0:00:43.2]}
33... Rc3+ {[%clk 0:00:52.3]} 34. Kxe4 {[%clk 0:00:44.1]} 34... Rxa3 {[%clk
0:00:53.2]} 35. Rf6+ {[%clk 0:00:45.5]} 35... Kb7 {[%clk 0:00:53.7]} 36. Rf7+
{[%clk 0:00:47.3]} 36... Kb6 {[%clk 0:00:51.4]} 37. Kd4 {[%clk 0:00:44.3]} 37...
Ra4 {[%clk 0:00:34.8]} 38. Rf6+ {[%clk 0:00:44.3]} 38... Kb7 {[%clk 0:00:33.9]}
39. Kc5 {[%clk 0:00:46.1]} 1-0

[Event "*** Titled Tuesday Blitz"]
[Site "Chess.com"]
[Date "2019.01.01"]
[Round "5"]
[White "kayamarley"]
[Black "ChessMavenYeti"]
[Result "0-1"]
[WhiteElo "1930"]
[BlackElo "2095"]
[TimeControl "180+2"]
[EndTime "14:10:10 PST"]
[Termination "ChessMavenYeti won by resignation"]

1. e4 {[%clk 0:03:01.9]} 1... e6 {[%clk 0:03:00.7]} 2. d4 {[%clk 0:02:44.1]}
2... d5 {[%clk 0:02:50.4]} 3. Nc3 {[%clk 0:02:44.5]} 3... Bb4 {[%clk 0:02:50.1]}
4. e5 {[%clk 0:02:43.9]} 4... c5 {[%clk 0:02:50]} 5. a3 {[%clk 0:02:44.8]} 5...
Ba5 {[%clk 0:02:51.1]} 6. f4 {[%clk 0:02:30.4]} 6... Ne7 {[%clk 0:02:38.8]} 7.
Nf3 {[%clk 0:02:30.2]} 7... Bd7 {[%clk 0:02:38.8]} 8. dxc5 {[%clk 0:02:29.7]}
8... Bxc3+ {[%clk 0:02:39.3]} 9. bxc3 {[%clk 0:02:30.5]} 9... Qa5 {[%clk
0:02:40.8]} 10. Bd2 {[%clk 0:02:26.7]} 10... Qxc5 {[%clk 0:02:40.9]} 11. Bd3
{[%clk 0:02:28.4]} 11... O-O {[%clk 0:02:32.3]} 12. Nd4 {[%clk 0:02:28.7]} 12...
Nbc6 {[%clk 0:02:31.2]} 13. Nb5 {[%clk 0:02:29.7]} 13... a6 {[%clk 0:02:17.2]}
14. Nd6 {[%clk 0:02:18.6]} 14... b5 {[%clk 0:01:57.5]} 15. a4 {[%clk 0:02:17.8]}
15... Nf5 {[%clk 0:01:52.5]} 16. Nxf5 {[%clk 0:02:17.3]} 16... exf5 {[%clk
0:01:53.7]} 17. axb5 {[%clk 0:02:18.7]} 17... axb5 {[%clk 0:01:54.6]} 18. Rxa8
{[%clk 0:02:19.6]} 18... Rxa8 {[%clk 0:01:55.6]} 19. Qb1 {[%clk 0:02:15.1]}
19... Nd8 {[%clk 0:01:43.5]} 20. Ke2 {[%clk 0:02:13.9]} 20... Ne6 {[%clk
0:01:39.2]} 21. Qb4 {[%clk 0:02:13.4]} 21... Qxb4 {[%clk 0:01:24.7]} 22. cxb4
{[%clk 0:02:12.8]} 22... d4 {[%clk 0:01:25.6]} 23. g3 {[%clk 0:02:12.3]} 23...
Bc6 {[%clk 0:01:25]} 24. Rc1 {[%clk 0:02:04.4]} 24... g6 {[%clk 0:01:14.2]} 25.
c3 {[%clk 0:02:05.3]} 25... dxc3 {[%clk 0:01:11.5]} 26. Rxc3 {[%clk 0:02:06.3]}
26... Ra2 {[%clk 0:01:03.7]} 27. Ke3 {[%clk 0:02:01.7]} 27... Bd7 {[%clk
0:00:51.7]} 28. Rc2 {[%clk 0:01:58.1]} 28... Ra3 {[%clk 0:00:47.2]} 29. Rc3
{[%clk 0:01:58.5]} 29... Ra1 {[%clk 0:00:44.4]} 30. Bc2 {[%clk 0:01:59.5]} 30...
Kf8 {[%clk 0:00:39]} 31. Bb3 {[%clk 0:01:57.4]} 31... Nd8 {[%clk 0:00:31.3]} 32.
Kd3 {[%clk 0:01:51.3]} 32... Rh1 {[%clk 0:00:30.2]} 33. h4 {[%clk 0:01:51.5]}
33... Nc6 {[%clk 0:00:28.8]} 34. Rc5 {[%clk 0:01:51.8]} 34... Nd8 {[%clk
0:00:18.2]} 35. Rd5 {[%clk 0:01:49.1]} 35... Ke7 {[%clk 0:00:18.6]} 36. Rd6
{[%clk 0:01:49.5]} 36... Rg1 {[%clk 0:00:18]} 37. Be3 {[%clk 0:01:44.6]} 37...
Rxg3 {[%clk 0:00:18.6]} 38. Ke2 {[%clk 0:01:43.8]} 38... Rg2+ {[%clk 0:00:17.3]}
39. Kf3 {[%clk 0:01:44]} 39... Rb2 {[%clk 0:00:18.1]} 40. Bd5 {[%clk 0:01:43.7]}
40... Ne6 {[%clk 0:00:13.3]} 41. Bxe6 {[%clk 0:01:42.7]} 41... fxe6 {[%clk
0:00:13.1]} 42. Bc5 {[%clk 0:01:44.6]} 42... Ke8 {[%clk 0:00:14]} 43. Rb6 {[%clk
0:01:45.2]} 43... Rb3+ {[%clk 0:00:15]} 44. Kg2 {[%clk 0:01:44.2]} 44... Rd3
{[%clk 0:00:15.4]} 45. Rb8+ {[%clk 0:01:44.7]} 45... Kf7 {[%clk 0:00:16.1]} 46.
Rf8+ {[%clk 0:01:43.3]} 46... Kg7 {[%clk 0:00:17.2]} 47. Rd8 {[%clk 0:01:44.1]}
47... Bc6+ {[%clk 0:00:18.2]} 48. Kf2 {[%clk 0:01:44.8]} 48... Rxd8 {[%clk
0:00:19.8]} 49. Be7 {[%clk 0:01:45.3]} 49... Rd2+ {[%clk 0:00:19.7]} 50. Ke3
{[%clk 0:01:45.5]} 50... Rb2 {[%clk 0:00:19.3]} 51. Kd4 {[%clk 0:01:46.3]} 51...
Bd5 {[%clk 0:00:20.1]} 52. Kc5 {[%clk 0:01:47.3]} 52... Bc4 {[%clk 0:00:21.4]}
53. Bf6+ {[%clk 0:01:47.4]} 53... Kf7 {[%clk 0:00:22.3]} 54. Bd8 {[%clk
0:01:45.2]} 54... Rf2 {[%clk 0:00:22.9]} 55. Bg5 {[%clk 0:01:45.1]} 55... Rg2
{[%clk 0:00:24.4]} 56. Kd6 {[%clk 0:01:45.3]} 56... Rg4 {[%clk 0:00:26]} 57. Kd7
{[%clk 0:01:46]} 57... h6 {[%clk 0:00:25.9]} 58. Bxh6 {[%clk 0:01:46.4]} 58...
Rxh4 {[%clk 0:00:27.4]} 59. Bg5 {[%clk 0:01:47.8]} 59... Rg4 {[%clk 0:00:28.7]}
60. Kc6 {[%clk 0:01:49.2]} 60... Rxg5 {[%clk 0:00:29.8]} 61. fxg5 {[%clk
0:01:49.9]} 61... f4 {[%clk 0:00:31.4]} 62. Kc5 {[%clk 0:01:51.4]} 62... f3
{[%clk 0:00:32.8]} 63. Kd4 {[%clk 0:01:53.3]} 63... f2 {[%clk 0:00:34.2]} 64.
Ke3 {[%clk 0:01:54.9]} 64... f1=Q {[%clk 0:00:35.8]} 65. Kd4 {[%clk 0:01:56.8]}
65... Qd3+ {[%clk 0:00:36.8]} 66. Kc5 {[%clk 0:01:58.7]} 66... Qd5+ {[%clk
0:00:38]} 67. Kb6 {[%clk 0:02:00.6]} 67... Qxe5 {[%clk 0:00:38.9]} 68. Ka5
{[%clk 0:02:02.5]} 68... Qxg5 {[%clk 0:00:40.1]} 0-1

[Event "*** Titled Tuesday Blitz"]
[Site "Chess.com"]
[Date "2019.01.01"]
[Round "5"]
[White "LucaBrasi1968"]
[Black "Andrew-FB00"]
[Result "1-0"]
[WhiteElo "2382"]
[BlackElo "1804"]
[TimeControl "180+2"]
[EndTime "14:10:14 PST"]
[Termination "LucaBrasi1968 won by resignation"]

1. e4 {[%clk 0:03:01.9]} 1... e5 {[%clk 0:03:00]} 2. Nf3 {[%clk 0:03:02]} 2...
Nc6 {[%clk 0:02:58.7]} 3. d4 {[%clk 0:03:01.4]} 3... exd4 {[%clk 0:02:58.8]} 4.
Nxd4 {[%clk 0:03:01.3]} 4... Bc5 {[%clk 0:02:58]} 5. Be3 {[%clk 0:03:01.3]} 5...
Qf6 {[%clk 0:02:57.9]} 6. c3 {[%clk 0:03:01.4]} 6... Nge7 {[%clk 0:02:57]} 7.
Bc4 {[%clk 0:03:02.2]} 7... Ne5 {[%clk 0:02:56.4]} 8. Be2 {[%clk 0:03:02]} 8...
d5 {[%clk 0:02:56.8]} 9. f4 {[%clk 0:03:00.5]} 9... Ng4 {[%clk 0:02:53]} 10.
Bxg4 {[%clk 0:02:51.2]} 10... Qh4+ {[%clk 0:02:52.6]} 11. Bf2 {[%clk 0:02:39.8]}
11... Qxg4 {[%clk 0:02:52.3]} 12. Qxg4 {[%clk 0:02:33.7]} 12... Bxg4 {[%clk
0:02:52.6]} 13. Nb5 {[%clk 0:02:32.9]} 13... Bxf2+ {[%clk 0:02:50.9]} 14. Kxf2
{[%clk 0:02:31.8]} 14... O-O-O {[%clk 0:02:29.7]} 15. e5 {[%clk 0:02:28.8]}
15... a6 {[%clk 0:02:14.6]} 16. Nd4 {[%clk 0:02:29.4]} 16... Nf5 {[%clk
0:02:02.9]} 17. Nd2 {[%clk 0:02:27]} 17... Nxd4 {[%clk 0:02:02.8]} 18. cxd4
{[%clk 0:02:26.7]} 18... g6 {[%clk 0:01:59.2]} 19. Rac1 {[%clk 0:02:27.7]} 19...
c6 {[%clk 0:01:56.9]} 20. h3 {[%clk 0:02:24.8]} 20... Be6 {[%clk 0:01:49.9]} 21.
g4 {[%clk 0:02:22.5]} 21... h5 {[%clk 0:01:49.6]} 22. Kg3 {[%clk 0:02:22.6]}
22... Kc7 {[%clk 0:01:34.3]} 23. Nb3 {[%clk 0:02:17.2]} 23... Rh7 {[%clk
0:01:16.4]} 24. Rcf1 {[%clk 0:01:44.6]} 24... hxg4 {[%clk 0:00:43.4]} 25. hxg4
{[%clk 0:01:43.6]} 25... Rdh8 {[%clk 0:00:43.6]} 26. Rxh7 {[%clk 0:01:43]} 26...
Rxh7 {[%clk 0:00:44.1]} 27. f5 {[%clk 0:01:43.8]} 27... gxf5 {[%clk 0:00:41.9]}
28. gxf5 {[%clk 0:01:44.4]} 28... Bc8 {[%clk 0:00:39.9]} 29. Rf2 {[%clk
0:01:44.9]} 29... Rg7+ {[%clk 0:00:34]} 30. Kf4 {[%clk 0:01:44.4]} 30... Rh7
{[%clk 0:00:31.4]} 31. Nd2 {[%clk 0:01:42.4]} 31... Rh4+ {[%clk 0:00:24.5]} 32.
Ke3 {[%clk 0:01:43.3]} 32... Rh5 {[%clk 0:00:21.7]} 33. f6 {[%clk 0:01:43.3]}
33... Be6 {[%clk 0:00:21.5]} 34. Nf3 {[%clk 0:01:35.6]} 34... Rh3 {[%clk
0:00:21.7]} 35. Rg2 {[%clk 0:01:36.6]} 35... Kd7 {[%clk 0:00:19.5]} 36. Kf4
{[%clk 0:01:36.5]} 36... b6 {[%clk 0:00:15.9]} 37. Ng5 {[%clk 0:01:35.5]} 37...
Rh4+ {[%clk 0:00:16.6]} 38. Ke3 {[%clk 0:01:36.5]} 38... Rh1 {[%clk 0:00:13.9]}
39. Nxe6 {[%clk 0:01:32.2]} 39... Kxe6 {[%clk 0:00:14.6]} 40. Rg8 {[%clk
0:01:33.8]} 40... Rh3+ {[%clk 0:00:13.6]} 41. Kf4 {[%clk 0:01:31]} 41... Rh4+
{[%clk 0:00:14.3]} 42. Kg5 {[%clk 0:01:25.5]} 42... Rh2 {[%clk 0:00:13.8]} 43.
Re8+ {[%clk 0:01:26.7]} 43... Kd7 {[%clk 0:00:13.7]} 44. Re7+ {[%clk 0:01:28.2]}
44... Kd8 {[%clk 0:00:14.2]} 45. Rxf7 {[%clk 0:01:29.2]} 45... Rxb2 {[%clk
0:00:14.7]} 46. e6 {[%clk 0:01:26.3]} 46... Rg2+ {[%clk 0:00:07.8]} 47. Kf5
{[%clk 0:01:26.6]} 47... Rf2+ {[%clk 0:00:08]} 48. Ke5 {[%clk 0:01:27.4]} 48...
Re2+ {[%clk 0:00:08.3]} 1-0

[Event "*** Titled Tuesday Blitz"]
[Site "Chess.com"]
[Date "2019.01.01"]
[Round "5"]
[White "LawrenceTrent"]
[Black "vladimirdamjanovic"]
[Result "1-0"]
[WhiteElo "2529"]
[BlackElo "2594"]
[TimeControl "180+2"]
[EndTime "14:10:16 PST"]
[Termination "LawrenceTrent won by resignation"]

1. d4 {[%clk 0:03:01.9]} 1... Nf6 {[%clk 0:03:00.2]} 2. Bg5 {[%clk 0:03:02.5]}
2... e6 {[%clk 0:03:01]} 3. e4 {[%clk 0:03:02.6]} 3... c5 {[%clk 0:03:02]} 4. d5
{[%clk 0:03:02.6]} 4... d6 {[%clk 0:03:02.5]} 5. Nc3 {[%clk 0:03:03.1]} 5... a6
{[%clk 0:03:03.8]} 6. a4 {[%clk 0:03:02.1]} 6... Be7 {[%clk 0:03:04.8]} 7. Nf3
{[%clk 0:02:59.4]} 7... O-O {[%clk 0:03:05.6]} 8. Qd2 {[%clk 0:02:56.8]} 8...
exd5 {[%clk 0:03:00.3]} 9. exd5 {[%clk 0:02:57.4]} 9... Bg4 {[%clk 0:02:57.1]}
10. Be2 {[%clk 0:02:58.4]} 10... Nbd7 {[%clk 0:02:48.1]} 11. O-O {[%clk
0:02:59]} 11... Re8 {[%clk 0:02:48.5]} 12. Rfe1 {[%clk 0:03:00]} 12... Qa5
{[%clk 0:02:32.3]} 13. Qf4 {[%clk 0:02:56.1]} 13... Qb4 {[%clk 0:02:22.1]} 14.
a5 {[%clk 0:02:42.2]} 14... Qxb2 {[%clk 0:02:10.6]} 15. Qd2 {[%clk 0:02:42.8]}
15... Bxf3 {[%clk 0:01:59.5]} 16. Bxf3 {[%clk 0:02:22.8]} 16... Qb4 {[%clk
0:01:39.8]} 17. Ra4 {[%clk 0:02:15.5]} 17... Ne4 {[%clk 0:01:21.5]} 18. Rxe4
{[%clk 0:02:11.8]} 18... Bxg5 {[%clk 0:01:18.4]} 19. Raxb4 {[%clk 0:01:20]}
19... Bxd2 {[%clk 0:01:16.4]} 20. Rxb7 {[%clk 0:01:19.5]} 20... Nf6 {[%clk
0:01:17.2]} 21. Rxe8+ {[%clk 0:01:20.3]} 21... Rxe8 {[%clk 0:01:13.3]} 22. Ne4
{[%clk 0:01:19]} 22... Nxe4 {[%clk 0:01:09.9]} 23. Bxe4 {[%clk 0:01:20.9]} 23...
Bxa5 {[%clk 0:00:56.5]} 24. g3 {[%clk 0:01:21.9]} 24... g6 {[%clk 0:00:46.1]}
25. Bd3 {[%clk 0:01:22.8]} 25... Rd8 {[%clk 0:00:24.9]} 26. Bxa6 {[%clk
0:01:22]} 26... Bc3 {[%clk 0:00:24.7]} 27. Bb5 {[%clk 0:01:18.4]} 27... Bd4
{[%clk 0:00:24.7]} 28. Bc6 {[%clk 0:01:19.4]} 28... Kg7 {[%clk 0:00:21.6]} 29.
Kg2 {[%clk 0:01:19.9]} 29... g5 {[%clk 0:00:22.4]} 30. Bd7 {[%clk 0:01:17.4]}
30... Kf6 {[%clk 0:00:21.8]} 31. Bg4 {[%clk 0:01:18.1]} 31... Be5 {[%clk
0:00:21.2]} 32. Bh5 {[%clk 0:01:17.3]} 32... Rf8 {[%clk 0:00:22.2]} 33. Kf3
{[%clk 0:01:16.1]} 33... h6 {[%clk 0:00:22.8]} 34. Rd7 {[%clk 0:01:12.8]} 34...
Kg7 {[%clk 0:00:23.4]} 35. Kg4 {[%clk 0:01:11.6]} 35... Kf6 {[%clk 0:00:24.4]}
36. c4 {[%clk 0:01:06.8]} 36... Kg7 {[%clk 0:00:22.6]} 37. Kf5 {[%clk
0:01:08.1]} 37... Kg8 {[%clk 0:00:19.8]} 38. f4 {[%clk 0:01:07.4]} 38... gxf4
{[%clk 0:00:21.7]} 39. gxf4 {[%clk 0:01:08.9]} 39... Bd4 {[%clk 0:00:23.5]} 40.
Rxd6 {[%clk 0:01:10.2]} 40... Ra8 {[%clk 0:00:23.6]} 41. Rxh6 {[%clk 0:01:04.7]}
41... Ra4 {[%clk 0:00:22.1]} 42. d6 {[%clk 0:01:02.8]} 42... Kf8 {[%clk
0:00:20.9]} 43. d7 {[%clk 0:00:59.2]} 43... Ke7 {[%clk 0:00:21.5]} 44. Rd6
{[%clk 0:01:00.7]} 44... Kd8 {[%clk 0:00:22.4]} 45. Bxf7 {[%clk 0:01:01.8]}
45... Ra7 {[%clk 0:00:20.4]} 46. Ke6 {[%clk 0:00:58.6]} 46... Be3 {[%clk
0:00:20.7]} 47. Rc6 {[%clk 0:00:59.4]} 47... Rc7 {[%clk 0:00:21.6]} 48. Rxc7
{[%clk 0:00:59]} 48... Kxc7 {[%clk 0:00:23.5]} 49. Ke7 {[%clk 0:00:58.6]} 1-0

[Event "*** Titled Tuesday Blitz"]
[Site "Chess.com"]
[Date "2019.01.01"]
[Round "5"]
[White "swisspower96"]
[Black "vovachesss"]
[Result "1-0"]
[WhiteElo "2536"]
[BlackElo "2485"]
[TimeControl "180+2"]
[EndTime "14:10:17 PST"]
[Termination "swisspower96 won by resignation"]

1. d4 {[%clk 0:02:59.1]} 1... g6 {[%clk 0:02:59.1]} 2. g3 {[%clk 0:02:57.8]}
2... Bg7 {[%clk 0:03:00.6]} 3. Bg2 {[%clk 0:02:59.3]} 3... d6 {[%clk 0:02:58.4]}
4. b3 {[%clk 0:03:00.5]} 4... c5 {[%clk 0:02:58.3]} 5. Bb2 {[%clk 0:02:59.5]}
5... cxd4 {[%clk 0:02:59]} 6. Bxd4 {[%clk 0:02:55.2]} 6... Nf6 {[%clk
0:03:00.1]} 7. c4 {[%clk 0:02:55.3]} 7... Nc6 {[%clk 0:03:00.9]} 8. Bb2 {[%clk
0:02:56.1]} 8... O-O {[%clk 0:03:02.4]} 9. Nc3 {[%clk 0:02:57.3]} 9... Qa5
{[%clk 0:02:53.8]} 10. Qd2 {[%clk 0:02:55.5]} 10... Ne5 {[%clk 0:02:35.7]} 11.
Nh3 {[%clk 0:02:52.2]} 11... Bf5 {[%clk 0:01:55.6]} 12. Nf4 {[%clk 0:02:51]}
12... Rab8 {[%clk 0:01:40.5]} 13. Rd1 {[%clk 0:02:36]} 13... a6 {[%clk
0:01:37.7]} 14. Ncd5 {[%clk 0:02:30.9]} 14... Qxd2+ {[%clk 0:00:56.8]} 15. Rxd2
{[%clk 0:02:32.1]} 15... Nxd5 {[%clk 0:00:57.7]} 16. Nxd5 {[%clk 0:02:32.7]}
16... Rfe8 {[%clk 0:00:57.9]} 17. O-O {[%clk 0:02:32.6]} 17... b5 {[%clk
0:00:57.8]} 18. Nc7 {[%clk 0:02:32.5]} 18... Rec8 {[%clk 0:00:54.7]} 19. Nxa6
{[%clk 0:02:32.6]} 19... Rb6 {[%clk 0:00:38.9]} 20. cxb5 {[%clk 0:02:30.3]}
20... Rxb5 {[%clk 0:00:38.2]} 21. Bd4 {[%clk 0:02:15.3]} 21... Nc6 {[%clk
0:00:20.6]} 22. Bxg7 {[%clk 0:02:14.4]} 22... Kxg7 {[%clk 0:00:22.5]} 23. Rc1
{[%clk 0:02:04.9]} 23... Ne5 {[%clk 0:00:15.9]} 24. Rdd1 {[%clk 0:01:42.9]}
24... Ra5 {[%clk 0:00:05.1]} 25. Rxc8 {[%clk 0:01:38.7]} 25... Bxc8 {[%clk
0:00:04.9]} 26. Nb4 {[%clk 0:01:40]} 26... Be6 {[%clk 0:00:03.6]} 27. h3 {[%clk
0:01:37.7]} 27... Nd7 {[%clk 0:00:04.9]} 28. Rd2 {[%clk 0:01:37.2]} 28... Nc5
{[%clk 0:00:06.2]} 29. f4 {[%clk 0:01:36.9]} 29... h5 {[%clk 0:00:06.4]} 30. Kf2
{[%clk 0:01:37.7]} 30... f5 {[%clk 0:00:06.6]} 31. Nc6 {[%clk 0:01:38.6]} 31...
Ra3 {[%clk 0:00:05.4]} 32. Nxe7 {[%clk 0:01:39.6]} 32... Kf6 {[%clk 0:00:05.7]}
33. Nd5+ {[%clk 0:01:40.8]} 33... Bxd5 {[%clk 0:00:07.1]} 34. Bxd5 {[%clk
0:01:41.4]} 34... g5 {[%clk 0:00:07.7]} 35. Bc4 {[%clk 0:01:39.3]} 35... gxf4
{[%clk 0:00:06.1]} 36. Rxd6+ {[%clk 0:01:39.4]} 36... Ke7 {[%clk 0:00:07.3]} 37.
Rc6 {[%clk 0:01:40]} 37... Ne4+ {[%clk 0:00:08.2]} 38. Kf3 {[%clk 0:01:40.7]}
38... fxg3 {[%clk 0:00:09.5]} 39. Ra6 {[%clk 0:01:37]} 39... Nd2+ {[%clk
0:00:09]} 40. Kxg3 {[%clk 0:01:34.7]} 40... Nxc4 {[%clk 0:00:10.9]} 41. Rxa3
{[%clk 0:01:34.1]} 41... Nxa3 {[%clk 0:00:12.3]} 42. Kh4 {[%clk 0:01:35.7]}
42... Kf6 {[%clk 0:00:10.5]} 43. Kxh5 {[%clk 0:01:36.5]} 43... Nc2 {[%clk
0:00:12.2]} 44. a4 {[%clk 0:01:35.8]} 44... Nd4 {[%clk 0:00:13.2]} 45. a5 {[%clk
0:01:36.7]} 45... Nc6 {[%clk 0:00:05.2]} 46. a6 {[%clk 0:01:36.7]} 46... Ke5
{[%clk 0:00:06.4]} 47. Kg5 {[%clk 0:01:37.2]} 47... Ke4 {[%clk 0:00:07.4]} 48.
h4 {[%clk 0:01:37.9]} 48... f4 {[%clk 0:00:07.5]} 49. h5 {[%clk 0:01:38.5]}
49... Ke3 {[%clk 0:00:08.1]} 50. h6 {[%clk 0:01:39.4]} 50... Kxe2 {[%clk
0:00:02.9]} 51. Kxf4 {[%clk 0:01:40.6]} 51... Kd3 {[%clk 0:00:03.3]} 52. h7
{[%clk 0:01:41.8]} 52... Kc3 {[%clk 0:00:04.8]} 53. h8=Q+ {[%clk 0:01:43.2]}
53... Kxb3 {[%clk 0:00:06.4]} 54. Qc8 {[%clk 0:01:43.1]} 54... Nb4 {[%clk
0:00:07.3]} 55. Qb7 {[%clk 0:01:44.2]} 55... Kc4 {[%clk 0:00:07.8]} 56. Qxb4+
{[%clk 0:01:45.5]} 56... Kxb4 {[%clk 0:00:09.6]} 57. a7 {[%clk 0:01:47.4]} 1-0